lending/lending_fUSD_20250917
["ID","MTS","AMOUNT","RATE_DAILY","PERIOD"]
[385895475,1758113441121,-151.0,0.00026632,7]
[385895476,1758113441130,-151.0,0.00026632,7]
[385895477,1758113441139,-151.0,0.00026632,7]
[385895478,1758113441148,-78.67090599,0.00026632,7]
[385895479,1758113441345,-72.32909401,0.00026632,7]
[385895480,1758113441355,-151.0,0.00026632,7]
[385895481,1758113441364,-151.0,0.00026632,7]
[385895482,1758113441373,-151.0,0.00026632,7]
[385895483,1758113441382,-151.0,0.00026632,7]
[385895484,1758113441391,-151.0,0.00026632,7]
[385895485,1758113441400,-151.0,0.00026632,7]
[385895486,1758113441410,-151.0,0.00026632,7]
[385895487,1758113441419,-169.913131,0.00026632,7]
[385895488,1758113441428,-151.0,0.00026632,7]
[385895489,1758113441438,-151.0,0.00026632,7]
[385895490,1758113441447,-98174.93676352,0.00026632,2]
[385895513,1758113446414,-300.0,0.000265,9]
[385895514,1758113446424,-6506.72965781,0.00026632,2]
[385895515,1758113446436,-6912.78770847,0.00026632,2]
[385895516,1758113446525,-4498.71054294,0.00026632,2]
[385895517,1758113446581,-7499.85658098,0.00026632,2]
[385895518,1758113446643,-600.0,0.000266,9]
[385895519,1758113446653,-4799.59960004,0.00026632,2]
[385895520,1758113446664,-978.2412814,0.00026632,2]
[385895521,1758113446802,-642.30963821,0.00026632,2]
[385895526,1758113464264,413.54925888,0.00028597,120]
[385895527,1758113466110,229.00000524,0.00028597,120]
[385895531,1758113540744,209.56,0.00025667,120]
[385895532,1758113551248,250.0,0.00015,2]
[385895533,1758113600876,505.344278,0.00029753,120]
[385895534,1758113603399,824.114754,0.00029753,120]
[385895535,1758113609108,511.746713,0.00029753,120]
[385895536,1758113614863,500.0,0.00029753,120]
[385895537,1758113762520,-250.02,0.00022495,2]
[385895538,1758113762547,-181.43,0.00022495,2]
[385895539,1758113767898,-250.02,0.00024311,2]
[385895540,1758113767924,-181.43,0.00024311,2]
[385895541,1758113767950,-68.55,0.00024874,2]
[385895542,1758113866397,68.55,0.00012806,2]
[385895543,1758113866434,89.04,0.00012806,2]
[385895544,1758113866834,157.59,0.00019209,2]
[385895548,1758114269062,720.0,0.00030137,120]
[385895550,1758114557845,219.0,0.0001981,2]
[385895558,1758114631549,-194.46,0.00022448,2]
[385895559,1758114631559,-339.0,0.000229,2]
[385895560,1758114631570,-80.91390575,0.00023898,2]
[385895561,1758114631582,-113.98348546,0.00023898,2]
[385895562,1758114631593,-600.0,0.00023986,2]
[385895563,1758114631604,-1200.0,0.00023998,2]
[385895564,1758114631615,-500.0,0.00023999,2]
[385895565,1758114631625,-500.0,0.00023999,2]
[385895566,1758114631634,-500.0,0.00023999,2]
[385895567,1758114631644,-500.0,0.00023999,2]
[385895568,1758114631654,-500.0,0.00023999,2]
[385895569,1758114631663,-425.51925596,0.00023999,2]
[385895570,1758114631673,-1100.0,0.00023999,2]
[385895571,1758114631682,-3459.28680334,0.00024,2]
[385895572,1758114631694,-1632.04199999,0.00024,2]
[385895573,1758114631726,-1188.97389735,0.00024,2]
[385895574,1758114631766,-2227.97004026,0.00024,2]
[385895575,1758114631778,-7837.05743017,0.00024,2]
[385895576,1758114631789,-268.16280738,0.00024,2]
[385895577,1758114631801,-8297.81305687,0.00024,2]
[385895578,1758114631813,-13747.88037548,0.00024,2]
[385895579,1758114631822,-332.0,0.0002408,2]
[385895580,1758114631832,-194.46,0.0002427,2]
[385895581,1758114631841,-600.0,0.00024534,2]
[385895582,1758114631851,-1356.45,0.00024874,2]
[385895583,1758114631861,-16032.10827612,0.000249,2]
[385895584,1758114631871,-500.0,0.00024904,2]
[385895585,1758114631881,-217.48,0.00025055,2]
[385895586,1758114631890,-238.57,0.00025103,2]
[385895587,1758114631899,-177.09,0.00025125,2]
[385895588,1758114631909,-150.0,0.00025179,7]
[385895589,1758114631918,-161.87,0.00025203,2]
[385895590,1758114631928,-325.0,0.0002527,2]
[385895591,1758114631937,-202.315416,0.000253,2]
[385895592,1758114631946,-500.0,0.00025534,2]
[385895593,1758114631956,-322.6107,0.00025564,2]
[385895594,1758114631966,-151.0,0.00025564,2]
[385895595,1758114631975,-670.58624095,0.00025564,2]
[385895597,1758114631985,-151.0,0.00025564,2]
[385895599,1758114631994,-151.0,0.00025564,2]
[385895601,1758114632004,-151.0,0.00025564,2]
[385895603,1758114632014,-257.91778498,0.00025564,2]
[385895605,1758114632023,-157.59,0.00025612,2]
[385895606,1758114632033,-1425.0,0.00025757,2]
[385895608,1758114632043,-6752.97,0.00025786,2]
[385895610,1758114632052,-150.99,0.00025786,2]
[385895612,1758114632062,-3721.66,0.00025786,2]
[385895614,1758114632071,-660.75208615,0.00025786,10]
[385895620,1758114632119,-1477.57408873,0.00025786,10]
[385895622,1758114632130,-1014.68785954,0.00025786,10]
[385895625,1758114632142,-734.81029887,0.00025786,10]
[385895875,1758114637680,-319.67,0.0002454,2]
[385895876,1758114637690,-454.28158156,0.00025785,2]
[385895877,1758114637702,-151.5323428,0.00025785,2]
[385895878,1758114637712,-18412.38566671,0.00025786,10]
[385895879,1758114637722,-1077.95,0.00025786,2]
[385895880,1758114637732,-549.0,0.00025945,2]
[385895881,1758114637741,-151.0,0.00025953,7]
[385895882,1758114637750,-2128.17924673,0.00025956,2]
[385895945,1758114640446,-4049.82075327,0.00025956,2]
[385895946,1758114640462,-420.44060937,0.00025956,2]
[385895947,1758114640482,-1221.23236582,0.00025956,2]
[385895948,1758114640514,-329.32905003,0.00025956,2]
[385896073,1758114642979,-471.60859999,0.00025956,2]
[385896123,1758114645603,-523.76962602,0.00025956,2]
[385896124,1758114646203,-15904.61974877,0.00025956,2]
[385896125,1758114646215,-4172.0,0.00025956,2]
[385896126,1758114646225,-726.0,0.00025956,2]
[385896127,1758114646235,-1124.3,0.00026,2]
[385896128,1758114646246,-1425.0,0.0002602,2]
[385896129,1758114646256,-1425.0,0.00026054,2]
[385896130,1758114646266,-194.46,0.00026092,7]
[385896132,1758114646276,-151.0,0.00026112,2]
[385896134,1758114646286,-151.0,0.00026112,2]
[385896136,1758114646298,-151.0,0.00026112,2]
[385896138,1758114646308,-1680.0,0.00026144,2]
[385896140,1758114646318,-804.63,0.00026233,2]
[385896142,1758114646328,-472.26,0.00026246,2]
[385896144,1758114646338,-441.78,0.00026246,2]
[385896145,1758114646348,-472.26,0.00026246,2]
[385896147,1758114646357,-472.26,0.00026246,2]
[385896148,1758114646367,-472.26,0.00026246,2]
[385896149,1758114646376,-470.26,0.00026246,2]
[385896150,1758114646386,-779.21,0.00026332,2]
[385896151,1758114646395,-238.57,0.00026358,2]
[385896152,1758114646405,-844.26332795,0.00026361,2]
[385896153,1758114646414,-1425.0,0.00026387,2]
[385896154,1758114646424,-318.0,0.0002645,2]
[385896155,1758114646434,-166.84,0.00026453,2]
[385896156,1758114646444,-10124.01606515,0.00026488,2]
[385896157,1758114646454,-2500.0,0.00026492,2]
[385896158,1758114646464,-1000.0,0.00026492,2]
[385896159,1758114646474,-1425.0,0.00026498,2]
[385896160,1758114646483,-779.19,0.000265,2]
[385896161,1758114646493,-1000.0,0.000265,9]
[385896162,1758114646502,-150.0,0.00026521,2]
[385896163,1758114646512,-1170.1173739,0.00026531,2]
[385896164,1758114646522,-490.77680951,0.00026532,2]
[385896165,1758114646532,-4583.02178883,0.00026532,2]
[385896166,1758114646546,-1000.0,0.00026541,2]
[385896167,1758114646555,-161.49884535,0.00026542,2]
[385896168,1758114646565,-267.93453117,0.0002657,2]
[385896169,1758114646575,-500.0,0.00026576,2]
[385896170,1758114646585,-150.0,0.00026576,2]
[385896171,1758114646595,-150.0,0.00026576,2]
[385896172,1758114646604,-293.8312474,0.00026576,2]
[385896173,1758114646617,-500.0,0.00026576,2]
[385896174,1758114646627,-500.0,0.00026576,2]
[385896175,1758114646637,-359.61281316,0.00026579,10]
[385896176,1758114646647,-50000.0,0.0002658,2]
[385896177,1758114646656,-500.0,0.0002658,2]
[385896178,1758114646666,-151.0,0.00026588,7]
[385896179,1758114646675,-10124.01606507,0.00026589,2]
[385896180,1758114646685,-500.0,0.0002659,5]
[385896181,1758114646694,-500.0,0.00026591,2]
[385896182,1758114646704,-500.0,0.00026591,2]
[385896183,1758114646713,-496.0,0.00026591,2]
[385896184,1758114646723,-500.0,0.00026591,2]
[385896185,1758114646732,-1886.0,0.00026591,2]
[385896186,1758114646742,-500.0,0.00026591,2]
[385896187,1758114646753,-150.0,0.00026591,2]
[385896188,1758114646762,-660.0,0.00026591,2]
[385896189,1758114646771,-150.0,0.00026591,2]
[385896190,1758114646781,-500.0,0.00026591,2]
[385896191,1758114646790,-10000.0,0.000266,2]
[385896192,1758114646800,-2100.0,0.000266,9]
[385896193,1758114646809,-1425.0,0.00026615,2]
[385896194,1758114646819,-150.0,0.00026616,2]
[385896195,1758114646828,-15771.2361102,0.00026621,2]
[385896196,1758114646837,-400.0,0.00026621,2]
[385896197,1758114646847,-400.0,0.00026621,2]
[385896198,1758114646860,-400.0,0.00026621,2]
[385896199,1758114646869,-151.67,0.00026622,2]
[385896200,1758114646878,-228.22564398,0.00026622,2]
[385896201,1758114646888,-15771.2361102,0.00026622,2]
[385896202,1758114646898,-3462.3680272,0.00026626,2]
[385896203,1758114646907,-6091.9555751,0.00026627,2]
[385896204,1758114646916,-151.0,0.00026627,7]
[385896205,1758114646925,-2726.41844811,0.00026628,2]
[385896206,1758114647518,-700.54276399,0.00026628,2]
[385896209,1758115024089,163.73,0.00012759,2]
[385896210,1758115024314,163.73,0.00015948,2]
[385896211,1758115024541,163.73,0.00019138,2]
[385896314,1758115373273,1400.0,0.0002,2]
[385896471,1758115508675,87540.04806508,0.0002,2]
[385896472,1758115518829,2905.8895816,9e-05,2]
[385896473,1758115524198,6026.56564388,0.000175,2]
[385896572,1758115676544,69716.42608111,0.0002,2]
[385896575,1758115690735,2243.26019703,0.0001439,2]
[385896587,1758115706589,1170.76132546,0.00018,2]
[385896594,1758115713808,2694.43743371,0.0001,2]
[385896606,1758115716152,499.64662143,0.000154,2]
[385896608,1758115724324,30132.9725416,0.00015,2]
[385896655,1758115831814,-163.73,0.00022328,2]
[385896656,1758115831825,-250.0,0.00022865,2]
[385896657,1758115831835,-53.03144635,0.00023949,2]
[385896658,1758115831872,-441.48428669,0.00023949,2]
[385896659,1758115831885,-702.56706677,0.00023949,2]
[385896660,1758115831895,-300.0,0.00023999,2]
[385896661,1758115831905,-1200.0,0.00023999,2]
[385896662,1758115831915,-1569.4867,0.00024,2]
[385896663,1758115831925,-1002.89936771,0.00024,2]
[385896664,1758115831935,-330.49550755,0.00024,2]
[385896665,1758115831945,-255.73,0.00024467,2]
[385896666,1758115831959,-500.0,0.00024521,2]
[385896667,1758115831969,-250.0,0.00024561,2]
[385896668,1758115831979,-500.0,0.00024658,2]
[385896669,1758115831989,-500.0,0.00024899,2]
[385896670,1758115831999,-221.79795577,0.00024899,2]
[385896671,1758115832008,-251.1466587,0.00024899,2]
[385896672,1758115832019,-19219.97127022,0.000249,2]
[385896673,1758115832029,-150.0,0.00024904,7]
[385896674,1758115832039,-164.0,0.00025,7]
[385896675,1758115832049,-152.0,0.00025,7]
[385896676,1758115832059,-162.37164658,0.00025,3]
[385896677,1758115832068,-50.24292041,0.00025084,2]
[385896678,1758115832102,-120.47707959,0.00025084,2]
[385896679,1758115832112,-327.0,0.000255,2]
[385896680,1758115832123,-257.91778498,0.00025504,2]
[385896681,1758115832133,-163.73,0.00025518,2]
[385896682,1758115832143,-106.61569881,0.00025583,2]
[385896683,1758115832155,-586.16862197,0.00025583,2]
[385896684,1758115832167,-1718.13001574,0.00025583,2]
[385896685,1758115832192,-531.12566348,0.00025583,2]
[385896686,1758115832202,-565.04,0.00025633,2]
[385896687,1758115832212,-500.0,0.00025753,2]
[385896688,1758115832222,-18.83812451,0.00025785,2]
[385896689,1758115832233,-814.82102388,0.00025785,2]
[385896691,1758115832245,-16.34085161,0.00025785,2]
[385896693,1758115832256,-150.99,0.00025786,2]
[385896695,1758115832265,-891.65260882,0.00025786,2]
[385896696,1758115832292,-581.15,0.00025786,2]
[385896698,1758115832304,-938.58626969,0.00025786,2]
[385896700,1758115832317,-1148.0,0.00025786,2]
[385896702,1758115832332,-1599.22750367,0.00025786,2]
[385896704,1758115832344,-2999.99999997,0.00025786,2]
[385896707,1758115832356,-9555.43076728,0.00025786,2]
[385896710,1758115832375,-18806.41285057,0.00025786,2]
[385896712,1758115832385,-151.0,0.00025796,2]
[385896714,1758115832394,-151.0,0.00025796,2]
[385896716,1758115832403,-670.58624095,0.00025796,2]
[385896718,1758115832413,-200.0,0.00025796,2]
[385896720,1758115832423,-151.0,0.00025796,2]
[385896722,1758115832432,-322.6107,0.00025796,2]
[385896724,1758115832442,-151.0,0.00025796,2]
[385896726,1758115832451,-164.0,0.0002589,7]
[385896728,1758115832462,-152.0,0.0002589,7]
[385896730,1758115832471,-1000.0,0.000259,2]
[385896732,1758115832481,-500.0,0.00025918,2]
[385896734,1758115832490,-912.954746,0.00025935,2]
[385896736,1758115832500,-1041.43,0.00026,2]
[385896738,1758115832509,-420.0,0.00026026,2]
[385896740,1758115832519,-200.0,0.000261,7]
[385896742,1758115832528,-900.0,0.000261,2]
[385896744,1758115832538,-1680.0,0.00026145,2]
[385896746,1758115832548,-556.59,0.00026211,2]
[385896748,1758115832557,-1104.0,0.000263,2]
[385896750,1758115832567,-556.56,0.00026306,2]
[385896752,1758115832577,-556.56,0.0002635,2]
[385896754,1758115832587,-8354.78304952,0.0002641,2]
[385896756,1758115832597,-441.69912855,0.0002641,2]
[385896758,1758115832606,-2500.0,0.0002641,2]
[385896760,1758115832615,-1000.0,0.0002641,2]
[385896762,1758115832625,-1043.29259544,0.00026416,2]
[385896764,1758115832634,-459.72423721,0.0002642,2]
[385896766,1758115832644,-154.05358759,0.0002642,2]
[385896768,1758115832654,-4011.91505257,0.00026421,2]
[385896770,1758115832663,-161.49884535,0.00026422,2]
[385896772,1758115832673,-5000.0,0.00026432,2]
[385896774,1758115832682,-1000.0,0.00026492,2]
[385896776,1758115832692,-900.0,0.000265,9]
[385896778,1758115832701,-151.67,0.00026502,2]
[385896780,1758115832711,-400.0,0.00026509,2]
[385896782,1758115832720,-400.0,0.00026509,2]
[385896784,1758115832730,-400.0,0.00026509,2]
[385896786,1758115832739,-554.75082277,0.00026509,2]
[385896788,1758115832749,-400.0,0.00026509,2]
[385896790,1758115832759,-400.0,0.00026509,2]
[385896793,1758115832779,-241.07984298,0.00026509,2]
[385896795,1758115832789,-400.0,0.00026509,2]
[385896797,1758115832799,-400.0,0.00026509,2]
[385896799,1758115832809,-400.0,0.00026509,2]
[385896801,1758115832818,-400.0,0.00026509,2]
[385896803,1758115832828,-404.91820168,0.00026509,2]
[385896805,1758115832838,-1000.0,0.00026509,2]
[385896807,1758115832847,-400.0,0.00026509,2]
[385896809,1758115832858,-400.0,0.00026509,2]
[385896811,1758115832867,-404.04879301,0.00026509,2]
[385896813,1758115832877,-400.0,0.00026509,2]
[385896815,1758115832887,-400.0,0.00026509,2]
[385896817,1758115832896,-400.0,0.00026509,2]
[385896819,1758115832905,-400.0,0.00026509,2]
[385896821,1758115832915,-400.0,0.00026509,2]
[385896823,1758115832924,-400.0,0.00026509,2]
[385896825,1758115832934,-400.0,0.00026509,2]
[385896827,1758115832943,-400.0,0.00026509,2]
[385896829,1758115832953,-400.0,0.00026509,2]
[385896831,1758115832966,-401.11853474,0.00026509,2]
[385896833,1758115832975,-473.21135664,0.00026509,2]
[385896835,1758115832986,-402.27842298,0.00026509,2]
[385896837,1758115832995,-400.0,0.00026509,2]
[385896839,1758115833006,-400.0,0.00026509,2]
[385896841,1758115833016,-430.83403088,0.00026509,2]
[385896843,1758115833026,-400.0,0.00026509,2]
[385896845,1758115833035,-400.0,0.00026509,2]
[385896848,1758115833047,-400.0,0.00026509,2]
[385896850,1758115833057,-400.0,0.00026509,2]
[385896852,1758115833067,-401.71317809,0.00026509,2]
[385896854,1758115833078,-557.31,0.00026509,2]
[385896856,1758115833088,-400.0,0.00026509,2]
[385896858,1758115833097,-400.0,0.00026509,2]
[385896860,1758115833107,-401.58364583,0.00026509,2]
[385896862,1758115833118,-1026.63,0.00026509,2]
[385896864,1758115833130,-400.0,0.00026509,2]
[385896866,1758115833140,-400.0,0.00026509,2]
[385896868,1758115833150,-610.71,0.00026509,2]
[385896870,1758115833161,-406.17172149,0.00026509,2]
[385896872,1758115833172,-402.4446126,0.00026509,2]
[385896874,1758115833182,-404.62379391,0.00026509,2]
[385896876,1758115833193,-400.38272137,0.00026509,2]
[385896878,1758115833203,-958.64,0.00026509,2]
[385896880,1758115833213,-400.0,0.00026509,2]
[385896882,1758115833225,-400.0,0.00026509,2]
[385896884,1758115833236,-977.62,0.00026509,2]
[385896886,1758115833247,-604.35,0.00026509,2]
[385896889,1758115833259,-613.63,0.00026509,2]
[385896891,1758115833268,-1145.05,0.00026509,2]
[385896893,1758115833278,-400.0,0.00026509,2]
[385896895,1758115833288,-946.65,0.00026509,2]
[385896897,1758115833298,-1383.81,0.00026509,2]
[385896899,1758115833307,-402.48593316,0.00026509,2]
[385896901,1758115833317,-401.17979285,0.00026509,2]
[385896903,1758115833329,-400.0,0.00026509,2]
[385896905,1758115833340,-400.0,0.00026509,2]
[385896907,1758115833349,-400.0,0.00026509,2]
[385896909,1758115833359,-505.96,0.00026509,2]
[385896911,1758115833370,-964.69,0.00026509,2]
[385896913,1758115833379,-890.43,0.00026509,2]
[385896915,1758115833389,-400.0,0.00026509,2]
[385896917,1758115833399,-400.0,0.00026509,2]
[385896919,1758115833408,-677.44,0.00026509,2]
[385896921,1758115833418,-400.0,0.00026509,2]
[385896923,1758115833428,-763.48,0.00026509,2]
[385896925,1758115833438,-400.0,0.00026509,2]
[385896927,1758115833447,-400.0,0.00026509,2]
[385896929,1758115833457,-400.0,0.00026509,2]
[385896931,1758115833467,-1064.73,0.00026509,2]
[385896933,1758115833477,-424.48,0.00026509,2]
[385896935,1758115833486,-400.0,0.00026509,2]
[385896937,1758115833496,-796.36,0.00026509,2]
[385896939,1758115833506,-790.67,0.00026509,2]
[385896941,1758115833520,-598.59,0.00026509,2]
[385896943,1758115833530,-400.0,0.00026509,2]
[385896945,1758115833540,-987.34,0.00026509,2]
[385896948,1758115833550,-549.79,0.00026509,2]
[385896950,1758115833560,-400.0,0.00026509,2]
[385896952,1758115833569,-4039.32,0.00026509,2]
[385896953,1758115833580,-400.0,0.00026509,2]
[385896956,1758115833590,-1608.95,0.00026509,2]
[385896958,1758115833599,-480.81,0.00026509,2]
[385896960,1758115833609,-586.14,0.00026509,2]
[385896962,1758115833619,-400.0,0.00026509,2]
[385896964,1758115833628,-400.0,0.00026509,2]
[385896966,1758115833638,-400.0,0.00026509,2]
[385896968,1758115833648,-1262.04,0.00026509,2]
[385896970,1758115833657,-1140.45,0.00026509,2]
[385896972,1758115833667,-400.0,0.00026509,2]
[385896974,1758115833677,-400.0,0.00026509,2]
[385896976,1758115833687,-1005.35,0.00026509,2]
[385896978,1758115833697,-780.61,0.00026509,2]
[385896980,1758115833706,-400.0,0.00026509,2]
[385896982,1758115833716,-400.0,0.00026509,2]
[385896984,1758115833727,-545.55,0.00026509,2]
[385896986,1758115833736,-400.0,0.00026509,2]
[385896988,1758115833746,-85856.24225868,0.00026509,3]
[385896990,1758115833762,-30311.45127756,0.00026509,3]
[385896993,1758115833774,-1037.62012203,0.00026509,3]
[385897011,1758115837752,-400.0,0.00026509,2]
[385897012,1758115837761,-400.0,0.00026509,2]
[385897013,1758115837770,-17306.77292977,0.00026509,3]
[385897014,1758115837834,-6861.31640272,0.00026509,3]
[385897015,1758115837893,-2195.73853,0.00026509,3]
[385897016,1758115837951,-3138.22720819,0.00026509,3]
[385897017,1758115837970,-50613.6428232,0.00026509,3]
[385897038,1758115839738,-400.0,0.00026509,2]
[385897039,1758115839747,-400.0,0.00026509,2]
[385897040,1758115839757,-400.0,0.00026509,2]
[385897041,1758115839766,-400.0,0.00026509,2]
[385897042,1758115839776,-672.93,0.00026509,2]
[385897043,1758115839786,-378.14380472,0.00026509,2]
[385897044,1758115839796,-57.95730696,0.00026509,3]
[385897045,1758115839995,-1517.16685709,0.00026509,3]
[385897046,1758115840046,-28007.53560648,0.00026509,3]
[385897047,1758115840056,-9030.68565188,0.00026509,3]
[385897063,1758115842879,-321.80696605,0.00026409,2]
[385897064,1758115842889,-165.87335538,0.00026509,2]
[385897065,1758115843045,-234.12664462,0.00026509,2]
[385897066,1758115843054,-330.91068428,0.00026509,3]
[385897069,1758115843219,-6815.96110459,0.00026509,3]
[385897070,1758115843231,-4423.7239837,0.00026509,3]
[385897071,1758115843243,-1163.7,0.00026509,3]
[385897084,1758115845951,-751.91,0.00026509,2]
[385897085,1758115845961,-400.0,0.00026509,2]
[385897086,1758115845974,-854.64,0.00026509,2]
[385897087,1758115845984,-400.0,0.00026509,2]
[385897088,1758115845994,-400.0,0.00026509,2]
[385897089,1758115846003,-534.09,0.00026509,2]
[385897090,1758115846013,-7205.21867252,0.00026509,3]
[385897091,1758115846024,-17111.15567434,0.00026509,3]
[385897092,1758115846113,-20802.25543905,0.00026509,3]
[385897414,1758116296533,250.21,0.00012646,2]
[385897614,1758117032036,-1425.0,0.0002355,2]
[385897615,1758117032046,-1425.0,0.00023593,2]
[385897616,1758117032055,-1425.0,0.00023771,2]
[385897617,1758117032065,-1425.0,0.00023882,2]
[385897618,1758117032074,-164.31133976,0.00023893,2]
[385897619,1758117032084,-150.0,0.00023893,2]
[385897620,1758117032093,-228.40344842,0.00023893,2]
[385897621,1758117032102,-1200.0,0.00024302,2]
[385897622,1758117032111,-590.33728626,0.00024303,2]
[385897623,1758117032123,-834.66271374,0.00024303,2]
[385897624,1758117032132,-300.0,0.00024561,2]
[385897625,1758117032142,-300.0,0.00024561,2]
[385897626,1758117032151,-1000.0,0.00024562,2]
[385897627,1758117032161,-1425.0,0.00024575,2]
[385897628,1758117032170,-300.0,0.00024648,2]
[385897629,1758117032180,-1449.9038345,0.00024649,2]
[385897631,1758117032189,-1425.0,0.00024669,2]
[385897632,1758117032200,-169.44,0.00024703,2]
[385897634,1758117032209,-1425.0,0.0002471,2]
[385897636,1758117032219,-1425.0,0.00024759,2]
[385897638,1758117032230,-150.0,0.0002485,7]
[385897640,1758117032239,-1096.0,0.00024899,2]
[385897642,1758117032248,-521.8,0.000249,2]
[385897643,1758117032257,-533.29,0.000249,2]
[385897645,1758117032266,-500.0,0.000249,2]
[385897646,1758117032276,-18802.80439556,0.000249,2]
[385897647,1758117032286,-1425.0,0.00024914,2]
[385897648,1758117032295,-500.0,0.00024986,2]
[385897649,1758117032304,-165.0,0.00025,7]
[385897650,1758117032314,-152.0,0.00025,7]
[385897651,1758117032323,-219.2,0.00025046,2]
[385897653,1758117032332,-526.49,0.00025086,2]
[385897655,1758117032342,-1000.0,0.00025133,2]
[385897657,1758117032351,-534.11,0.00025133,2]
[385897659,1758117032360,-151.0,0.00025159,2]
[385897661,1758117032370,-151.0,0.00025159,2]
[385897663,1758117032379,-151.0,0.00025159,2]
[385897665,1758117032388,-151.0,0.00025159,2]
[385897666,1758117032398,-500.0,0.00025159,2]
[385897668,1758117032408,-500.0,0.00025159,2]
[385897669,1758117032417,-500.0,0.00025159,2]
[385897670,1758117032426,-500.0,0.00025159,2]
[385897671,1758117032436,-151.0,0.00025159,2]
[385897672,1758117032445,-151.0,0.00025159,2]
[385897673,1758117032454,-151.0,0.00025159,2]
[385897674,1758117032464,-151.0,0.00025159,2]
[385897676,1758117032473,-151.0,0.00025159,2]
[385897678,1758117032483,-151.0,0.00025159,2]
[385897679,1758117032493,-200.0,0.00025159,2]
[385897680,1758117032502,-151.0,0.00025159,2]
[385897682,1758117032512,-151.0,0.00025159,2]
[385897684,1758117032522,-151.0,0.00025159,2]
[385897686,1758117032532,-5000.0,0.00025174,2]
[385897688,1758117032542,-184.28999937,0.000252,2]
[385897690,1758117032551,-1000.0,0.00025266,2]
[385897692,1758117032561,-459.66,0.00025279,2]
[385897694,1758117032570,-322.6107,0.00025298,2]
[385897696,1758117032579,-245.93742012,0.00025298,2]
[385897698,1758117032589,-257.91778498,0.00025298,2]
[385897700,1758117032598,-1000.0,0.0002536,2]
[385897702,1758117032607,-1425.0,0.00025373,2]
[385897704,1758117032616,-315.0,0.000254,2]
[385897706,1758117032626,-1000.0,0.00025422,2]
[385897708,1758117032635,-1000.0,0.00025478,2]
[385897710,1758117032645,-1000.0,0.00025489,2]
[385897711,1758117032654,-240.57,0.00025516,2]
[385897712,1758117032663,-1425.0,0.00025529,2]
[385897713,1758117032673,-1425.0,0.0002563,2]
[385897714,1758117032683,-150.0,0.00025686,2]
[385897715,1758117032692,-1425.0,0.00025709,2]
[385897716,1758117032702,-1003.5,0.00025722,2]
[385897717,1758117032713,-1000.0,0.00025724,2]
[385897718,1758117032723,-500.0,0.00025781,2]
[385897719,1758117032732,-1750.0,0.000258,2]
[385897720,1758117032742,-1425.0,0.00025805,2]
[385897721,1758117032752,-737.1550634,0.00025858,2]
[385897722,1758117032761,-152.0,0.0002589,7]
[385897723,1758117032771,-800.0,0.000259,9]
[385897724,1758117032780,-1425.0,0.00025908,2]
[385897725,1758117032790,-1041.43,0.00026,2]
[385897726,1758117032800,-1000.0,0.00026026,2]
[385897727,1758117032809,-150.0,0.00026099,2]
[385897728,1758117032819,-1679.0,0.000261,2]
[385897729,1758117032828,-500.0,0.00026137,2]
[385897730,1758117032838,-318.06,0.00026199,2]
[385897731,1758117032847,-164.74209923,0.00026203,2]